bitfinex-derivatives/quotes_ETHF0:USTF0_20250322
["timestamp","ask_amount","ask_price","bid_price","bid_amount"]
[1742677256049,1.2751,1991.6,1991.5,1.00444]
[1742677257042,1.2751,1991.6,1991.4,2.30706]
[1742677257447,1.2751,1991.6,1991.5,1.00444]
[1742677257646,2.27953,1991.6,1991.5,1.3026]
[1742677260153,5.48733,1991.6,1991.5,1.3026]
[1742677261456,1.00449,1991.4,1991.3,1.3215]
[1742677261656,1.00449,1991.4,1991.3,2.32604]
[1742677262359,4.4829,1991.6,1991.5,1.00444]
[1742677262562,4.4829,1991.6,1991.4,1.00445]
[1742677262563,1.2751,1991.6,1991.4,1.00445]
[1742677262764,1.00444,1991.5,1991.4,1.00445]
[1742677263158,2.27953,1991.6,1991.5,1.00444]
[1742677263354,1.2751,1991.6,1991.1,3.2078]
[1742677263653,1.00451,1991.4,1991.3,1.00452]
[1742677263854,1.67168,1991.5,1991.4,1.00449]
[1742677264055,2.97578,1991.5,1991.4,1.00449]
[1742677264464,1.0045,1991.4,1991.3,1.00451]
[1742677264663,2.3086,1991.4,1991.3,1.00451]
[1742677264855,1.3041,1991.4,1991.2,3.9746]
[1742677265060,2.30861,1991.4,1991.3,1.00454]
[1742677265766,1.00454,1991.3,1991.2,0.6576]
[1742677265963,1.3468,1991.3,1991.0,3.315]
[1742677266167,1.00463,1991.2,1991.1,1.00464]
[1742677266365,1.00465,1991.1,1991.0,1.70486]
[1742677266565,2.35145,1991.1,1991.0,1.7049]
[1742677266870,2.35145,1991.1,1991.0,0.7002]
[1742677267168,2.35145,1991.1,1991.0,1.7049]
[1742677267771,2.35145,1991.1,1991.0,0.7002]
[1742677267971,2.35145,1991.1,1991.0,1.7049]
[1742677268165,2.35145,1991.1,1991.0,0.7002]
[1742677268764,1.3468,1991.1,1991.0,1.7049]
[1742677270573,2.35145,1991.1,1991.0,0.7002]
[1742677271171,2.35145,1991.1,1991.0,1.7049]
[1742677271370,2.35145,1991.1,1991.0,0.7002]
[1742677271871,2.35145,1991.1,1991.0,1.7049]
[1742677272272,2.35145,1991.1,1991.0,0.7002]
[1742677272666,3.312,1991.2,1991.1,1.00465]
[1742677272866,4.6375,1991.2,1991.1,1.00465]
[1742677273265,5.6421,1991.2,1991.1,1.00465]
[1742677273470,1.00465,1991.1,1991.0,1.70486]
[1742677273669,2.33015,1991.1,1991.0,1.70486]
[1742677273968,2.99155,1991.1,1991.0,1.7049]
[1742677274167,1.9869,1991.1,1991.0,1.7049]
[1742677274368,2.99155,1991.1,1991.0,1.7049]
[1742677275264,1.9869,1991.1,1991.0,1.7049]
[1742677275465,1.3255,1991.1,1991.0,1.7049]
[1742677276870,2.33015,1991.1,1991.0,1.7049]
[1742677277068,1.3255,1991.1,1991.0,3.0348]
[1742677277467,2.33015,1991.1,1991.0,3.0348]
[1742677278973,1.3255,1991.1,1991.0,3.0348]
[1742677279178,2.33015,1991.1,1991.0,3.0348]
[1742677279880,1.0047,1991.0,1990.9,1.66191]
[1742677280076,1.314,1991.0,1990.9,1.66191]
[1742677280283,2.3187,1991.0,1990.9,0.6572]
[1742677280475,2.3187,1991.0,1990.9,1.66195]
[1742677280676,2.3187,1991.0,1990.9,3.00265]
[1742677280982,1.314,1991.0,1990.9,3.00265]
[1742677281275,2.3187,1991.0,1990.9,3.00265]
[1742677281473,2.3187,1991.0,1990.9,1.9979]
[1742677281674,1.00475,1990.9,1990.8,1.64427]
[1742677281876,2.32195,1990.9,1990.8,2.98497]
[1742677282180,2.32195,1990.9,1990.8,1.9802]
[1742677283277,1.0048,1990.8,1990.7,0.699]
[1742677283483,2.3125,1990.8,1990.7,0.699]
[1742677283885,2.3125,1990.8,1990.7,1.9694]
[1742677284085,5.6145,1990.8,1990.7,1.9694]
[1742677286681,4.6097,1990.8,1990.5,1.00491]
[1742677286883,1.0049,1990.6,1990.5,1.00491]
[1742677287587,2.28069,1990.7,1990.5,1.00491]
[1742677287790,1.0049,1990.6,1990.5,1.00491]
[1742677287990,2.2807,1990.6,1990.5,1.00491]
[1742677288188,1.2758,1990.6,1990.5,1.00491]
[1742677288582,2.28073,1990.6,1990.4,2.35308]
[1742677288884,2.28074,1990.6,1990.4,1.3481]
[1742677289081,1.00494,1990.6,1990.5,1.3222]
[1742677290786,0.6867,1990.7,1990.4,1.3481]
[1742677290990,1.00495,1990.5,1990.4,0.6701]
[1742677291486,1.005,1990.4,1990.3,0.6758]
[1742677291682,1.6635,1990.4,1990.3,0.6758]
[1742677291883,0.6976,1990.6,1990.0,3.2078]
[1742677292085,3.3,1990.5,1990.4,1.005]
[1742677292390,3.3,1990.5,1990.4,3.0355]
[1742677293485,4.30495,1990.5,1990.4,3.0355]
[1742677293685,3.3,1990.5,1990.4,3.0355]
[1742677294192,4.31395,1990.5,1990.4,2.0305]
[1742677294385,4.31395,1990.5,1990.3,0.6631]
[1742677294386,1.005,1990.4,1990.3,0.6631]
[1742677294590,1.005,1990.4,1990.3,2.0295]
[1742677295289,5.62439,1990.5,1990.3,3.03452]
[1742677295491,1.005,1990.4,1990.3,3.03452]
[1742677295688,3.309,1990.5,1990.4,3.0309]
[1742677296690,1.00491,1990.6,1990.5,1.00495]
[1742677296991,7.52468,1990.7,1990.6,1.0049]
[1742677297190,2.35051,1990.8,1990.7,1.00485]
[1742677297396,1.67141,1990.8,1990.6,1.00486]
[1742677297601,3.2078,1990.9,1990.7,2.0811]
[1742677297896,3.2078,1990.9,1990.8,3.0307]
[1742677298299,0.00751748,1991.0,1990.9,1.00475]
[1742677298494,0.00751748,1991.0,1990.9,5.47705]
[1742677300396,0.00751748,1991.0,1990.9,2.26925]
[1742677306000,1.01221748,1991.0,1990.9,1.2645]
[1742677306199,1.00475,1990.9,1990.8,1.64389]
[1742677306398,0.6927,1990.9,1990.8,1.64389]
[1742677306897,1.69745,1990.9,1990.8,1.9509]
[1742677307103,3.09635,1990.9,1990.8,1.9509]
[1742677307291,2.0916,1990.9,1990.8,2.9557]
[1742677307898,1.3989,1990.9,1990.8,2.9557]
[1742677308092,2.40365,1990.9,1990.8,2.9557]
[1742677308291,2.40365,1990.9,1990.8,1.9509]
[1742677308505,2.40365,1990.9,1990.8,2.9557]
[1742677308708,2.40365,1990.9,1990.8,1.9509]
[1742677309507,2.40365,1990.9,1990.8,1.0048]
[1742677309700,1.0048,1990.8,1990.7,2.98141]
[1742677309904,1.3914,1990.8,1990.7,2.98141]
[1742677310798,2.3962,1990.8,1990.7,1.9766]
[1742677311502,1.00485,1990.7,1990.6,0.6928]
[1742677311701,3.02546,1990.7,1990.6,1.0049]
[1742677311896,1.0049,1990.6,1990.5,3.2078]
[1742677312095,2.9947,1990.6,1990.5,3.2078]
[1742677314603,1.00495,1990.5,1990.4,1.00499]
[1742677314899,2.30669,1990.5,1990.4,1.005]
[1742677315803,2.30669,1990.5,1990.3,3.72471]
[1742677316103,1.3017,1990.4,1990.3,3.72471]
[1742677317004,2.3067,1990.4,1990.3,3.72471]
[1742677317503,1.3017,1990.4,1990.3,3.72471]
[1742677317805,2.3067,1990.4,1990.3,2.7197]
[1742677317997,2.9757,1990.4,1990.3,2.7197]
[1742677318197,2.9757,1990.4,1990.3,3.72475]
[1742677318699,2.9757,1990.4,1990.3,2.7197]
[1742677319096,1.00507,1990.3,1990.1,6.94281]
[1742677319291,1.00507,1990.3,1990.2,1.3708]
[1742677319501,1.00509,1990.3,1990.1,4.91271]
[1742677319697,1.00509,1990.3,1990.2,1.3708]
[1742677319896,1.00509,1990.3,1990.2,2.3759]
[1742677320101,1.0051,1990.2,1990.1,3.9076]
[1742677320309,1.0051,1990.2,1990.1,0.6998]
[1742677320495,1.0051,1990.2,1990.1,1.70495]
[1742677320696,1.0051,1990.2,1990.1,2.38795]
[1742677321294,1.0051,1990.2,1990.1,1.3828]
[1742677321498,1.00515,1990.1,1989.9,3.2078]
[1742677321708,1.0052,1990.0,1989.9,5.4922]
[1742677322200,1.0052,1990.0,1989.9,4.487]
[1742677322509,1.0052,1990.0,1989.9,1.2792]
[1742677322703,1.0052,1990.0,1989.9,2.28445]
[1742677323907,4.98699,1990.1,1989.9,1.2792]
[1742677324207,1.0052,1990.0,1989.9,2.28443]
[1742677325196,3.9818,1990.1,1989.6,3.2078]
[1742677325402,3.2078,1990.0,1989.5,1.9777]
[1742677325603,1.00535,1989.7,1989.6,2.2893]
[1742677325798,3.295,1989.9,1989.6,1.2839]
[1742677326000,1.00528,1989.9,1989.7,2.28921]
[1742677326209,1.00528,1989.9,1989.8,1.3453]
[1742677326210,1.00525,1989.9,1989.8,1.3453]
[1742677326405,0.00753655,1990.0,1989.8,2.35059]
[1742677326606,0.00753655,1990.0,1989.5,6.41522]
[1742677326607,0.00753655,1990.0,1989.6,1.00539]
[1742677326906,0.00753655,1990.0,1989.5,1.69921]
[1742677326907,9.02296,1989.9,1989.5,1.69921]
[1742677327112,9.02296,1989.9,1989.5,3.04455]
[1742677327113,1.0054,1989.6,1989.5,3.04455]
[1742677327309,1.0054,1989.6,1989.5,2.0391]
[1742677327504,1.0054,1989.6,1989.5,2.35075]
[1742677327705,1.0054,1989.6,1989.5,1.3453]
[1742677327908,1.00545,1989.5,1989.4,1.67019]
[1742677328106,1.00543,1989.6,1989.3,4.3041]
[1742677328309,1.00548,1989.5,1989.4,1.991]
[1742677328612,1.00543,1989.6,1989.4,1.991]
[1742677328813,1.00543,1989.6,1989.4,1.65117]
[1742677329014,1.00543,1989.6,1989.4,2.99647]
[1742677329312,1.00557,1989.3,1989.1,1.00562]
[1742677329509,1.00557,1989.3,1989.2,1.9502]
[1742677329703,4.31954,1989.4,1989.2,2.95578]
[1742677329912,4.31954,1989.4,1989.3,1.00555]
[1742677329913,3.314,1989.4,1989.3,1.00555]
[1742677330103,3.314,1989.4,1989.3,2.27255]
[1742677330299,3.317,1989.8,1989.4,2.51375]
[1742677330509,4.3223,1989.8,1989.7,1.00531]
[1742677330711,3.317,1989.8,1989.7,1.00535]
[1742677331511,0.00753655,1990.0,1989.7,3.78033]
[1742677331710,0.00753655,1990.0,1989.9,1.00525]
[1742677332214,0.00753655,1990.0,1989.9,5.54555]
[1742677332408,3.329,1990.3,1990.2,1.0051]
[1742677332915,3.329,1990.3,1990.1,2.99841]
[1742677333119,1.0051,1990.2,1990.1,1.9933]
[1742677333308,4.33408,1990.3,1990.1,2.99841]
[1742677333508,5.00138,1990.3,1990.1,2.99841]
[1742677334211,5.00138,1990.3,1990.2,1.0051]
[1742677334417,3.329,1990.3,1990.2,1.0051]
[1742677334713,3.329,1990.3,1990.2,2.3376]
[1742677336729,1.01255655,1990.4,1990.3,1.00505]
[1742677336913,0.00753655,1990.4,1990.3,2.33585]
[1742677337114,2.40953655,1990.4,1990.3,2.33585]
[1742677337507,1.40453655,1990.4,1990.3,2.33585]
[1742677338616,0.00753655,1990.4,1990.3,2.33585]
[1742677345525,1.01253655,1990.4,1990.3,2.33585]
[1742677345711,2.33633655,1990.4,1990.3,2.33585]
[1742677345917,1.33133655,1990.4,1990.3,2.33585]
[1742677346220,2.33633655,1990.4,1990.3,2.33585]
[1742677346420,1.33133655,1990.4,1990.3,2.33585]
[1742677346717,2.33633655,1990.4,1990.3,2.33585]
[1742677347124,1.33133655,1990.4,1990.3,2.33585]
[1742677347927,2.33633655,1990.4,1990.3,2.33585]
[1742677348728,1.33133655,1990.4,1990.3,2.33585]
[1742677350124,0.00753655,1990.4,1990.3,2.33585]
[1742677359323,4.2126,1990.8,1990.7,1.00485]
[1742677359518,5.4993,1990.8,1990.7,1.00485]
[1742677360029,4.4945,1990.8,1990.7,1.00485]
[1742677360334,4.4945,1990.8,1990.7,2.26935]
[1742677360734,1.2867,1990.8,1990.7,2.26935]
[1742677363639,0.00753655,1990.9,1990.8,1.0048]
[1742677363936,1.34313655,1990.9,1990.8,2.3051]
[1742677365537,1.34313655,1990.9,1990.8,1.3003]
[1742677365841,2.34788655,1990.9,1990.8,1.3003]
[1742677366536,2.34788655,1990.9,1990.8,2.3051]
[1742677368830,1.34313655,1990.9,1990.8,2.3051]
[1742677373743,1.34313655,1990.9,1990.8,2.3552]
[1742677380232,0.00753655,1990.9,1990.8,2.3552]
[1742677380438,0.00753655,1990.9,1990.8,8.836]
[1742677381437,0.00753655,1990.9,1990.8,2.4171]
[1742677381743,0.70583655,1990.9,1990.8,2.4171]
[1742677381941,0.00753655,1990.9,1990.8,2.4171]
[1742677382137,1.01228655,1990.9,1990.8,2.4171]
[1742677382337,2.39118655,1990.9,1990.8,2.4171]
[1742677383942,5.59898655,1990.9,1990.8,0.112]
[1742677384144,8.87298655,1990.9,1990.8,0.112]
[1742677384346,1.0049,1990.6,1990.5,0.3465]
[1742677384537,4.2127,1990.6,1990.5,0.3314269]
[1742677384743,1.0051,1990.2,1990.1,1.00514]
[1742677385548,2.3411,1990.2,1990.1,2.35934]
[1742677386948,2.3411,1990.2,1990.1,2.37064]
[1742677387947,2.3411,1990.2,1990.1,2.37065]
[1742677388145,2.3411,1990.2,1990.1,1.3655]
[1742677388336,2.3411,1990.2,1990.1,0.0113]
[1742677389045,1.00515,1990.1,1990.0,0.00753655]
[1742677389247,1.00538,1989.7,1989.5,2.27702]
[1742677389443,4.6723,1989.6,1989.3,0.6962]
[1742677389648,1.3923,1989.5,1989.3,2.97334]
[1742677389843,1.0055,1989.4,1989.3,1.9678]
[1742677390045,3.28,1989.4,1989.0,3.2078]
[1742677390357,1.3629,1989.3,1989.1,1.355]
[1742677391551,1.00561,1989.2,1989.1,1.355]
[1742677392051,1.3629,1989.3,1989.2,1.00561]
[1742677392442,0.00753655,1989.4,1989.3,1.00555]
[1742677392644,0.00753655,1989.4,1989.3,2.36055]
[1742677392846,1.3629,1989.8,1989.7,1.00535]
[1742677394247,3.2078,1990.4,1990.2,1.00509]
[1742677394449,1.00504,1990.4,1989.9,5.813]
[1742677394744,1.00496,1990.5,1990.2,1.00506]
[1742677394940,1.00496,1990.5,1990.3,0.6374]
[1742677395152,3.294,1990.6,1990.3,0.6374]
[1742677395340,1.00498,1990.5,1990.3,1.64245]
[1742677395547,2.37578,1990.5,1990.4,1.3274]
[1742677396047,1.3708,1990.5,1990.4,1.3274]
[1742677396242,2.37575,1990.5,1990.4,1.3274]
[1742677396444,3.30153655,1990.6,1990.5,1.00495]
[1742677396445,0.00753655,1990.6,1990.5,1.00495]
[1742677396649,0.00753655,1990.6,1990.4,2.97576]
[1742677396848,0.00753655,1990.6,1990.5,1.00495]
[1742677396849,1.31493655,1990.6,1990.5,1.00495]
[1742677397050,1.31493655,1990.6,1990.5,2.31235]
[1742677398453,0.00753655,1990.6,1990.5,2.31235]
[1742677399649,1.3812,1990.9,1990.8,1.0048]
[1742677399849,1.3812,1990.9,1990.7,1.00482]
[1742677400050,1.3812,1990.9,1990.8,1.3031]
[1742677400250,2.38595,1990.9,1990.8,1.3031]
[1742677400657,1.0048,1990.8,1990.7,1.3031]
[1742677400856,1.3812,1990.8,1990.7,2.30795]
[1742677401961,1.3812,1990.8,1990.7,1.3031]
[1742677402346,1.3812,1990.8,1990.7,1.00485]
[1742677403451,1.3812,1990.8,1990.7,2.31575]
[1742677404652,0.00753655,1991.0,1990.8,1.00477]
[1742677404857,0.00753655,1991.0,1990.9,2.31565]
[1742677406060,1.40693655,1991.0,1990.9,2.31565]
[1742677406758,1.00476,1990.9,1990.7,1.00482]
[1742677406963,4.6934,1990.8,1990.5,3.2078]
[1742677407260,4.6934,1990.8,1990.3,0.00753655]
[1742677407261,1.00493,1990.6,1990.3,0.68953655]
[1742677407564,2.40435,1990.5,1990.3,1.69454655]
[1742677407751,1.3994,1990.4,1990.3,1.69454655]
[1742677408962,1.3994,1990.4,1990.3,0.68953655]
[1742677409460,1.3994,1990.4,1990.3,2.07623655]
[1742677409758,2.4044,1990.4,1990.3,2.07623655]
[1742677410658,1.3994,1990.4,1990.3,2.07623655]
[1742677410855,1.3994,1990.4,1990.3,3.08128655]
[1742677412363,1.3994,1990.4,1990.3,2.07623655]
[1742677413165,1.3994,1990.4,1990.3,3.08128655]
[1742677417057,1.3994,1990.4,1990.3,2.07623655]
[1742677417460,3.2078,1990.6,1990.5,1.00495]
[1742677418058,3.284,1990.8,1990.5,1.2762]
[1742677418261,4.2888,1990.8,1990.6,1.0049]
[1742677418562,1.374,1990.7,1990.6,1.0049]
[1742677423669,1.00476,1990.9,1990.8,1.0048]
[1742677424472,1.00476,1990.9,1990.7,1.00481]
[1742677424864,1.00475,1990.9,1990.5,5.79732]
[1742677425066,1.2797,1990.8,1990.7,1.00485]
[1742677425266,2.2845,1990.8,1990.7,1.00485]
[1742677426275,1.2797,1990.8,1990.7,1.00485]
[1742677426468,2.2845,1990.8,1990.7,1.00485]
[1742677426970,1.2797,1990.8,1990.7,1.00485]
[1742677427176,2.2845,1990.8,1990.7,1.00485]
[1742677427380,1.2797,1990.8,1990.7,1.00485]
[1742677427675,0.00753655,1991.0,1990.7,3.273]
[1742677427979,1.39113655,1991.0,1990.9,1.00475]
[1742677430471,1.00475,1990.9,1990.8,4.5844]
[1742677430675,1.00475,1990.9,1990.7,3.273]
[1742677430676,1.0048,1990.8,1990.7,3.273]
[1742677430881,2.3632,1990.8,1990.6,1.00487]
[1742677431284,1.3584,1990.7,1990.6,1.00487]
[1742677432397,1.3584,1990.7,1990.6,4.21267]
[1742677433398,0.00753655,1991.0,1990.5,10.38966]
[1742677433693,1.3846,1990.9,1990.8,1.0048]
[1742677434701,1.3846,1990.9,1990.8,4.2126]
[1742677435295,0.00753655,1991.0,1990.9,1.00475]
[1742677435497,1.39213655,1991.0,1990.9,2.32705]
[1742677436295,2.39683655,1991.0,1990.9,2.32705]
[1742677437293,1.39213655,1991.0,1990.9,3.62855]
[1742677441099,0.00753655,1991.0,1990.9,6.90655]
[1742677441501,1.3791,1991.4,1991.3,1.00454]
[1742677442396,1.3791,1991.4,1991.3,1.67194]
[1742677443004,4.5620018,1991.5,1991.4,1.00449]
[1742677443204,0.00753655,1991.5,1991.4,2.32569]
[1742677443598,2.0078,1991.9,1991.8,1.00429]
[1742677443804,1.325,1991.9,1991.8,1.00429]
[1742677444697,1.325,1991.9,1991.8,2.29559]
[1742677445003,0.00489753,1992.0,1991.9,1.00424]
[1742677445201,0.00489753,1992.0,1991.9,2.29554]
[1742677446200,3.2078,1992.2,1992.1,1.00414]
[1742677446509,1.2775,1992.4,1992.3,1.004]
[1742677446909,1.00386,1992.7,1992.5,1.00392]
[1742677447111,1.2775,1992.7,1992.6,1.00389]
[1742677447304,1.2775,1992.7,1992.5,1.0039]
[1742677447511,1.2775,1992.7,1992.6,1.2913]
[1742677447708,1.2775,1992.7,1992.6,2.29519]
[1742677447908,2.28134,1992.7,1992.6,1.2913]
[1742677448206,1.2775,1992.7,1992.6,2.29519]
[1742677449201,3.8637,1993.0,1992.9,1.00374]
[1742677449511,3.2078,1993.0,1992.9,1.00374]
[1742677449712,4.21149,1993.0,1992.8,1.01128655]
[1742677450014,4.21149,1993.0,1992.9,1.00374]
[1742677450212,3.2078,1993.0,1992.9,1.00374]
[1742677450509,5.48009,1993.0,1992.9,2.33784]
[1742677451711,4.4764,1993.0,1992.9,2.33784]
[1742677451916,5.48009,1993.0,1992.9,2.33784]
[1742677452209,1.2686,1993.0,1992.9,2.33784]
[1742677454707,1.00374,1992.9,1992.8,1.01131655]
[1742677454902,4.21154,1992.9,1992.8,0.00753655]
[1742677455107,5.55584,1992.9,1992.8,0.00753655]
[1742677455509,6.83064,1992.9,1992.8,0.00753655]
[1742677455905,3.62284,1992.9,1992.8,0.00753655]
[1742677456411,6.83064,1992.9,1992.8,0.00753655]
[1742677456912,2.93534,1992.9,1992.8,0.00753655]
[1742677459910,5.1394,1992.9,1992.8,0.00753655]
[1742677460117,1.2748,1992.9,1992.8,1.01132655]
[1742677460506,2.27854,1992.9,1992.8,0.00753655]
[1742677460916,2.27854,1992.9,1992.8,1.01132655]
[1742677461106,1.2748,1992.9,1992.8,1.01132655]
[1742677463117,1.2748,1992.9,1992.8,2.36622655]
[1742677463815,1.00372,1993.0,1992.9,1.00374]
[1742677464122,3.2078,1993.1,1993.0,1.00369]
[1742677464716,4.5006,1993.1,1993.0,2.35859]
[1742677464904,5.50424,1993.1,1993.0,2.35859]
[1742677465319,5.50424,1993.1,1993.0,1.00369]
[1742677466213,2.29644,1993.1,1993.0,1.00369]
[1742677467907,1.2928,1993.1,1993.0,1.00369]
[1742677468218,1.2928,1993.1,1993.0,3.00479]
[1742677468819,3.2078,1993.4,1993.3,1.00354]
[1742677469015,1.2817,1993.3,1993.2,1.00355]
[1742677470628,2.28524,1993.3,1993.2,1.00355]
[1742677470926,2.28524,1993.3,1993.1,1.0036]
[1742677470927,1.00359,1993.2,1993.1,1.0036]
[1742677471124,2.28529,1993.2,1993.1,1.0036]
[1742677471516,2.28529,1993.2,1993.1,2.3149]
[1742677472227,1.67898,1993.5,1993.4,1.00349]
[1742677472823,1.67107,1993.7,1993.2,7.09915]
[1742677473015,4.95807,1993.7,1993.6,1.00339]
[1742677473523,5.64087,1993.7,1993.6,1.00339]
[1742677473721,1.00341,1993.6,1993.5,1.0034]
[1742677473925,2.35391,1993.6,1993.5,2.3066]
[1742677474125,1.3505,1993.6,1993.5,2.3066]
[1742677474322,1.00344,1993.5,1993.4,1.64677]
[1742677474724,1.00349,1993.4,1993.3,1.9675]
[1742677474919,1.00354,1993.3,1993.2,4.29057]
[1742677475119,2.33254,1993.3,1993.2,4.29057]
[1742677475315,2.33254,1993.3,1993.2,3.287]
[1742677475530,1.329,1993.3,1993.2,4.29059]
[1742677475728,1.329,1993.3,1993.2,5.59879]
[1742677477225,1.69016,1993.5,1993.4,1.00349]
[1742677477226,1.00346,1993.5,1993.4,1.00349]
[1742677477429,1.00346,1993.5,1993.3,2.3117]
[1742677477632,1.00346,1993.5,1993.3,1.0035]
[1742677477926,1.00349,1993.4,1993.2,4.29055]
[1742677478123,5.71628,1993.6,1993.2,4.29055]
[1742677478326,1.00353,1993.4,1993.2,4.29055]
[1742677478521,2.33657,1993.5,1993.3,1.00354]
[1742677478721,2.33659,1993.4,1993.3,2.40284]
[1742677478921,2.33659,1993.4,1993.3,1.3993]
[1742677479117,1.3331,1993.4,1993.3,2.40284]
[1742677479932,2.33659,1993.4,1993.3,2.40284]
[1742677480122,1.3331,1993.4,1993.3,2.40284]
[1742677480522,3.2078,1993.6,1993.3,2.40284]
[1742677480722,4.5409,1993.6,1993.5,1.00344]
[1742677481129,4.5409,1993.6,1993.5,2.36344]
[1742677481333,4.5409,1993.6,1993.5,1.36]
[1742677481532,4.5409,1993.6,1993.5,2.36344]
[1742677482129,3.8485,1993.9,1993.8,1.00329]
[1742677482435,3.2078,1993.9,1993.8,1.00329]
[1742677483324,4.21105,1993.9,1993.8,1.00329]
[1742677483526,5.52265,1993.9,1993.8,1.00329]
[1742677485526,4.5194,1993.9,1993.8,1.00329]
[1742677485723,4.5194,1993.9,1993.8,2.33399]
[1742677486824,5.52263,1993.9,1993.8,2.33399]
[1742677487037,5.52263,1993.9,1993.8,1.3307]
[1742677488227,5.52263,1993.9,1993.8,2.33399]
[1742677488427,5.52263,1993.9,1993.8,3.66109]
[1742677488731,5.52263,1993.9,1993.8,2.6578]
[1742677489535,5.52263,1993.9,1993.8,3.66109]
[1742677490239,2.31483,1993.9,1993.8,3.66109]
[1742677491127,2.31483,1993.9,1993.8,2.6578]
[1742677491530,4.5194,1993.9,1993.2,2.50888]
[1742677491736,4.52176,1993.8,1993.5,1.00342]
[1742677491940,1.00344,1993.6,1993.5,2.35592]
[1742677492237,1.3138,1993.7,1993.5,1.3525]
[1742677492434,1.00339,1993.6,1993.5,1.00342]
[1742677492835,1.00339,1993.6,1993.4,5.61195]
[1742677493030,0.6997,1993.8,1993.5,1.0034]
[1742677493224,4.28719,1994.0,1993.9,1.00323]
[1742677493431,1.00329,1993.8,1993.7,1.00331]
[1742677498830,1.00328,1993.9,1993.7,1.00331]
[1742677499027,1.00328,1993.9,1993.8,1.00329]
[1742677500346,1.0033,1993.8,1993.7,1.00329]
[1742677500542,1.00344,1993.5,1993.4,2.33496]
[1742677500737,1.00344,1993.5,1993.4,1.3315]
[1742677501439,4.21124,1993.5,1993.4,1.3315]
[1742677502644,1.00354,1993.3,1993.2,1.00357]
[1742677503046,1.00354,1993.3,1993.1,5.5676]
[1742677503845,1.00354,1993.3,1993.1,2.3598]
[1742677504043,1.00354,1993.3,1993.2,1.00359]
[1742677504243,1.00354,1993.3,1993.1,2.3598]
[1742677506631,1.00359,1993.2,1993.1,1.3562]
[1742677507342,2.39059,1993.2,1993.1,1.3562]
[1742677510439,2.39059,1993.2,1993.1,2.6698]
[1742677512546,1.00366,1993.1,1992.9,4.2797]
[1742677512747,2.38296,1993.1,1993.0,1.3486]
[1742677513347,2.38296,1993.1,1993.0,2.35229]
[1742677513650,1.3793,1993.1,1993.0,2.35229]
[1742677514249,2.38294,1993.1,1993.0,2.35229]
[1742677514442,1.3793,1993.1,1993.0,2.35229]
[1742677514644,2.38294,1993.1,1993.0,1.3486]
[1742677515843,1.00369,1993.0,1992.9,4.5669]
[1742677516049,2.34579,1993.0,1992.9,6.94194]
[1742677516652,1.3421,1993.0,1992.9,6.94194]
[1742677517046,2.34579,1993.0,1992.9,2.6622]
[1742677517247,1.00374,1992.9,1992.8,0.00753655]
[1742677517551,2.34584,1992.9,1992.8,0.00753655]
[1742677517760,3.69764,1992.9,1992.8,0.00753655]
[1742677519753,6.96364,1992.9,1992.8,0.00753655]
[1742677520956,10.17144,1992.9,1992.8,0.00753655]
[1742677521559,11.67713,1992.9,1992.5,1.3321]
[1742677521864,1.00394,1992.5,1992.4,1.2681]
[1742677522361,1.00404,1992.3,1992.2,4.26906]
[1742677522757,1.00404,1992.3,1992.2,1.00406]
[1742677523056,1.00409,1992.2,1992.1,5.58253655]
[1742677523259,1.01154655,1992.4,1992.3,1.00404]
[1742677523658,2.39354655,1992.4,1992.3,1.00404]
[1742677524062,1.00404,1992.3,1992.2,2.27216]
[1742677524264,2.30924,1992.3,1992.2,2.27216]
[1742677524762,2.30924,1992.3,1992.2,1.2681]
[1742677524962,2.30924,1992.3,1992.2,2.27219]
[1742677525162,2.30924,1992.3,1992.2,1.2681]
[1742677525557,1.01155655,1992.4,1992.3,1.00404]
[1742677525754,0.00753655,1992.4,1992.3,1.00404]
[1742677526360,1.01152655,1992.4,1992.3,1.00404]
[1742677526768,1.00404,1992.3,1992.2,1.2681]
[1742677526959,2.33774,1992.3,1992.2,1.2681]
[1742677527164,1.00409,1992.2,1992.1,1.37063655]
[1742677527365,2.33779,1992.2,1992.1,1.37063655]
[1742677527773,2.33779,1992.2,1992.1,2.69883655]
[1742677528469,1.01156655,1992.4,1992.2,1.00406]
[1742677528669,2.33778,1992.3,1992.1,1.37063655]
[1742677528870,2.33779,1992.2,1992.1,2.37473655]
[1742677529170,1.3337,1992.2,1992.1,2.37473655]
[1742677529964,0.00753655,1992.4,1992.3,1.00404]
[1742677530170,1.32213655,1992.4,1992.3,1.00404]
[1742677530373,2.32612655,1992.4,1992.3,1.00404]
[1742677531977,1.32213655,1992.4,1992.2,1.00405]
[1742677532166,2.32617655,1992.4,1992.2,1.00405]
[1742677532566,2.32617655,1992.4,1992.3,1.00404]
[1742677533567,1.32213655,1992.4,1992.1,1.37063655]
[1742677533971,1.00404,1992.3,1992.2,1.00407]
[1742677534767,4.52993655,1992.4,1992.1,2.37475655]
[1742677534963,1.3161,1992.2,1992.1,2.37475655]
[1742677543677,4.21932655,1992.4,1992.1,1.37063655]
[1742677543884,4.53103655,1992.4,1992.1,2.37475655]
[1742677544186,1.00409,1992.2,1992.1,2.37475655]
[1742677545085,2.31976,1992.3,1992.2,1.00409]
[1742677546278,1.3157,1992.3,1992.2,1.00409]
[1742677546476,2.31974,1992.3,1992.2,1.00409]
[1742677547385,2.31974,1992.3,1992.2,2.33009]
[1742677550781,1.3157,1992.3,1992.2,2.33009]
[1742677550981,2.31974,1992.3,1992.2,2.33009]